Cogmind - Beta 14 @@@ ROGUE MODE // 2024.12.05 @ 12:22:56 Player: hoganstuff Result: Self-destructed Performance ------------- Evolutions (5) 2500 Regions Visited (7) 1400 Robots Destroyed (103) 515 Value Destroyed (3568) 3568 Prototype IDs (7) 140 Alien Tech Used (0) 0 Bonus (11) 11 TOTAL SCORE: 8134 Bonus ------- High Alert Combat Kills 11 Cogmind --------- Core Integrity 466/1000 Matter 25/300 Energy 100/100 System Corruption 8% Temperature Cool (0) Movement Core (250) Ox4 Location -5/Factory Parts ------- > --- POWER (2) -------- (None) > --- PROPULSION (4) --- (None) > --- UTILITY (7) ------ Medium Storage Unit > --- WEAPON (4) ------- Heavy Machine Gun > --- INVENTORY (10) --- Advanced Heat Sink Energy Well (350) Advanced Weight Redist. System Improved Particle Charger Gauss Rifle Gauss Rifle Guided EMP Blaster Powered Hammer Peak State ------------ > --- POWER ------------ Light Angular Momentum Engine Light Fission Core > --- PROPULSION ------- Carbon-fiber Leg Carbon-fiber Leg Flexi-carbon Leg Armored Leg > --- UTILITY ---------- Power Amplifier Cryofiber Web Advanced Heat Sink Medium Storage Unit Improved Particle Charger Advanced Shield Generator Point Defense System > --- WEAPON ----------- Heavy Particle Gun Heavy Laser Cooled Particle Cannon Cooled Plasma Cannon > --- INVENTORY -------- Micro Nuclear Core Advanced Heat Sink Coolant Injector Advanced Weight Redist. System Improved Particle Charger Cooled Plasma Cannon Gauss Rifle Heavy Machine Gun Gauss Cannon Heavy Rocket Launcher [Rating: 80] Favorites ----------- Power Light Nuclear Core Engine Improved Ion Engine Power Core Light Nuclear Core Propulsion Carbon-fiber Leg Leg Carbon-fiber Leg Wheel Compact Wheel Utility Medium Storage Unit Device Improved Heat Sink Storage Medium Storage Unit Processor Improved Signal Interpreter Protection Weapon Shielding Weapon Precision Beam Rifle Energy Gun Precision Beam Rifle Energy Cannon Cooled Particle Cannon Ballistic Gun Minigun Ballistic Cannon Light Cannon Launcher Heavy Rocket Launcher Special Weapon Mining Laser Slashing Weapon Katana Build | -11 -10 -10 -10 -8 -7 -6 -5 ------- Run | Yrd Mat Min Sub Mat Fac Fac Fac Slots Evolved 10 | . . . . 4 2 2 2 Power 1 | . . . . . . 1 . Propulsion 2 | . . . . 1 1 . . Utility 5 | . . . . 2 1 . 2 Weapon 2 | . . . . 1 . 1 . Parts Attached 171 | 6 2 17 3 38 35 53 17 Power 21 | 1 1 3 1 1 3 10 1 Engine 7 | 1 1 2 1 . . 2 . Core 14 | . . 1 . 1 3 8 1 Reactor . | . . . . . . . . Propulsion 39 | 2 . 5 . 12 5 12 3 Treads . | . . . . . . . . Leg 33 | 2 . 5 . 12 5 6 3 Wheel 6 | . . . . . . 6 . Hover . | . . . . . . . . Flight . | . . . . . . . . Utility 55 | 1 1 3 1 9 18 19 3 Device 35 | . . 1 . 2 13 16 3 Storage 4 | 1 . . . 1 . 2 . Processor 1 | . . . . . 1 . . Hackware . | . . . . . . . . Protection 15 | . 1 2 1 6 4 1 . Artifact . | . . . . . . . . Weapon 56 | 2 . 6 1 16 9 12 10 Energy Gun 27 | 2 . 4 1 5 7 7 1 Energy Cannon 5 | . . . . . 1 2 2 Ballistic Gun 13 | . . . . 7 1 2 3 Ballistic Cannon 4 | . . 1 . . . . 3 Launcher 4 | . . . . 2 . 1 1 Special Weapon 2 | . . 1 . 1 . . . Impact Weapon . | . . . . . . . . Slashing Weapon 1 | . . . . 1 . . . Piercing Weapon . | . . . . . . . . Special Melee Weapon . | . . . . . . . . Unidentified Prototypes 6 | . . . . 2 2 2 . Parts Lost 45 | . . 1 1 4 5 10 24 Power 7 | . . 1 1 . 1 1 3 Propulsion 17 | . . . . 3 3 5 6 Utility 8 | . . . . 1 . 1 6 Weapon 13 | . . . . . 1 3 9 Highest Loss Streak 17 | . . 1 1 1 2 7 17 To Critical Strikes . | . . . . . . . . Average Slot Usage (%) 90 | . 98 100 99 97 90 84 71 Engine 4 | . 14 12 13 8 . . 3 Core 5 | . . 1 . . 7 12 3 Leg 22 | . 28 28 28 26 26 10 17 Device 10 | . . . . 9 7 18 19 Storage 8 | . 14 14 14 9 7 5 5 Processor 1 | . . . . . 4 2 . Protection 10 | . 12 13 14 16 11 2 . Energy Gun 18 | . 28 21 20 18 20 18 6 Energy Cannon 1 | . . . . . 1 2 7 Ballistic Gun 2 | . . . . 7 . 3 2 Ballistic Cannon 1 | . . 6 . . . . 2 Peak Build Rating 80 | 6 7 17 16 34 44 68 80 Average Rating 35 | 4 6 12 13 25 40 52 57 On Entrance 22 | . 6 7 15 13 34 40 68 Naked Turns . | . . . . . . . . Heaviest Build 62 | 12 17 23 21 39 58 58 62 Greatest Support 66 | 20 20 25 25 45 58 66 66 Greatest Overweight (x) 3 | 3 . 1 . 2 2 3 3 Average Overweight (x) . | . . . . . . 1 . Largest Inventory Capacity 10 | 8 8 8 8 10 10 10 10 Average Capacity 9 | 7 8 8 8 9 10 9 10 Most Carried 10 | 1 5 8 8 10 10 10 10 Average Carried 8 | . 3 7 7 8 9 9 8 Final Capacity 10 | 8 8 8 8 10 10 10 10 Final Carried 10 | 1 5 8 8 10 10 10 9 Class Distribution -------------------- 29% | Scavenger-Tank 16% | Mutant 15% | Scavenger-Gunner 15% | Scavenger-Skirmisher 10% | Tank 7% | Scavenger-Mutant 5% | Skirmisher Dominant Class ---------------- Mutant | -10/Materials Mutant | -10/Mines Scavenger-Mutant | -10/Subcaves Scavenger-Tank | -8/Materials Scavenger-Skirmisher | -7/Factory Scavenger-Gunner | -6/Factory Scavenger-Tank | -5/Factory Resources | -11 -10 -10 -10 -8 -7 -6 -5 ----------- Run | Yrd Mat Min Sub Mat Fac Fac Fac Matter Collected 2512 | 150 . 280 53 596 545 811 77 Remotely . | . . . . . . . . Salvage Created 4528 | . . 258 77 1084 677 2015 417 Parts 201 | . . 32 . 49 41 62 17 Haulers Intercepted 5 | . . . . 2 . 3 . Recyclers Shooed 4 | . . 1 . . 1 1 1 Parts Field Recycled . | . . . . . . . . Retrieved Matter . | . . . . . . . . Parts Self-Destructed . | . . . . . . . . Prevented . | . . . . . . . . Kills | -11 -10 -10 -10 -8 -7 -6 -5 ------- Run | Yrd Mat Min Sub Mat Fac Fac Fac Combat Hostiles Destroyed 70 | . . 12 2 18 12 15 11 Guns 46 | . . 10 2 14 10 9 1 Cannons 15 | . . 2 . . 2 4 7 AOE 8 | . . . . 4 . 1 3 Classes Destroyed 14 | . . 3 1 7 2 1 . Worker 5 | . . . . 1 . 3 1 Builder 5 | . . . . . . 4 1 Tunneler 2 | . . 2 . . . . . Hauler 5 | . . . . 2 . 3 . Recycler 6 | . . . . . 1 5 . Watcher 10 | . . . . 4 4 1 1 Swarmer 17 | . . 10 . . 3 . 4 Grunt 21 | . . 2 . 7 3 9 . Brawler 2 | . . . . 1 1 . . Duelist 2 | . . . . 1 1 . . Sentry 6 | . . . . 5 . 1 . Hunter 10 | . . . . 4 . 1 5 Programmer 10 | . . . . . 4 4 2 Subdweller 2 | . . . 2 . . . . Best Kill Streak 7 | . . 4 1 5 3 7 6 Combat Bots Only 5 | . . 3 1 5 2 3 5 Max Kills in Single Turn 3 | . . 1 1 2 1 2 3 Gunslinging . | . . . . . . . . Exploded 2 | . . . . 2 . 1 2 Melee . | . . . . . . . . Uniques/NPCs Destroyed . | . . . . . . . . Combat | -11 -10 -10 -10 -8 -7 -6 -5 -------- Run | Yrd Mat Min Sub Mat Fac Fac Fac Hostile Shots Fired 642 | . . 58 15 91 68 112 298 Missed 192 | . . 19 3 30 10 35 95 Damage Taken 8178 | . . 440 238 857 1431 1671 3541 Core 1866 | . . 60 76 135 388 673 534 Absorbed by Shields 87 | . . . . . . 23 64 Redirected to Shielding 49 | . . 7 7 30 5 . . Ignored by Resistances 61 | . . . . 61 . . . Regen/Repaired (Parts) 500 | . . . . 155 . 229 116 Core Remaining (%) 56 | 100 . . 45 75 44 20 . Volleys Fired 251 | . . 34 8 71 46 58 34 Largest 4 | . . 2 2 3 3 4 4 Hottest 319 | . . 156 156 177 187 275 319 Shots Fired 720 | . . 67 16 196 127 211 103 Gun 599 | . . 57 15 190 111 193 33 Cannon 102 | . . 5 . . 16 15 66 Launcher 12 | . . . . 5 . 3 4 Special 7 | . . 5 1 1 . . . Kinetic 124 | . . 5 . 46 2 36 35 Thermal 583 | . . 62 16 145 125 171 64 Explosive 12 | . . . . 5 . 3 4 Electromagnetic 1 | . . . . . . 1 . Robot Hit Streak 21 | . . 6 8 8 21 11 8 Robot Miss Streak 6 | . . 6 1 3 5 3 4 Penetration Max . | . . . . . . . . Secondary Targets . | . . . . . . . . Shots Hit Robots 434 | . . 26 13 127 80 136 52 Core Hits 196 | . . 15 5 60 34 57 25 Critical Kills . | . . . . . . . . Critical Parts Destroyed . | . . . . . . . . Critical Strikes 36 | . . 2 1 9 10 13 1 Burn 35 | . . 2 1 9 10 13 . Blast 1 | . . . . . . . 1 Melee Attacks 1 | . . . . 1 . . . Impact . | . . . . . . . . Slashing 1 | . . . . 1 . . . Piercing . | . . . . . . . . Sneak Attacks . | . . . . . . . . Combat Hostiles . | . . . . . . . . Follow-up Attacks . | . . . . . . . . Damage Inflicted 10285 | . . 393 212 2319 1607 3703 2051 Guns 6993 | . . 303 188 1965 1256 2901 380 Cannons 2035 | . . 52 . . 273 521 1189 Explosions 1081 | . . . . 351 . 254 476 Melee . | . . . . . . . . Ramming 152 | . . 38 . 3 78 27 6 Kinetic 1389 | . . 52 . 473 . 469 395 Thermal 7640 | . . 303 212 1492 1529 2930 1174 Explosive 1081 | . . . . 351 . 254 476 Electromagnetic 23 | . . . . . . 23 . Impact . | . . . . . . . . Slashing . | . . . . . . . . Piercing . | . . . . . . . . Highest Corruption 8 | . . . . . 7 6 8 Average Corruption 5 | . . . . . 6 4 4 Corruption Purged . | . . . . . . . . Corruption Blocked . | . . . . . . . . Effects 63 | . . . . . 33 22 8 Message Errors 14 | . . . . . 7 6 1 Matter Fused 12 | . . . . . 5 6 1 Heat Flow Errors 8 | . . . . . 4 2 2 Energy Discharges 7 | . . . . . 5 2 . Parts Rejected 1 | . . . . . . . 1 Data Loss (minor) 11 | . . . . . 6 4 1 Data Loss (major) 2 | . . . . . 1 . 1 Misfires 4 | . . . . . 3 1 . Alerts 2 | . . . . . 1 . 1 Weapon Failures 2 | . . . . . 1 1 . Overload Shots 22 | . . . . . . 12 10 Effects 1 | . . . . . . . 1 Short Circuit 1 | . . . . . . . 1 Overflow Damage 43 | . . . . . . 18 25 Projectiles 43 | . . . . . . 18 25 Explosions . | . . . . . . . . Melee . | . . . . . . . . Knockbacks 4 | . . 1 . . . . 3 Impact 1 | . . 1 . . . . . Kinetic 3 | . . . . . . . 3 Secondary . | . . . . . . . . Self-Inflicted Damage 28 | . . . . . . . 28 Shots 1 | . . . . . . . 1 Rammed . | . . . . . . . . Targets Rammed 28 | . . 8 . 2 7 8 3 Kicked 28 | . . 8 . 2 7 8 3 Crushed . | . . . . . . . . Highest Temperature 702 | . . 455 6 396 592 702 249 Average Temperature 174 | . . 143 3 91 222 225 42 Received Heat Transfer 1014 | . . 123 72 252 198 369 . Effects 92 | . . 2 . 5 48 37 . Shutdowns 20 | . . 2 . 1 8 9 . Energy Bleed 3 | . . . . . 2 1 . Interference 22 | . . . . 3 13 6 . Matter Decay 8 | . . . . . 6 2 . Short Circuit 11 | . . . . 1 4 6 . Damage (minor) 4 | . . . . . 3 1 . Damage (major) 17 | . . . . . 9 8 . Damage (core) 7 | . . . . . 3 4 . Siege Activations . | . . . . . . . . Robots Corrupted . | . . . . . . . . Combat Hostiles . | . . . . . . . . Parts Fried . | . . . . . . . . Impact Corruptions 1 | . . . . . 1 . . Robots Melted 2 | . . . . 1 . 1 . Combat Hostiles 1 | . . . . . . 1 . Parts Melted 39 | . . 2 1 15 11 8 2 Heat Transferred 16572 | . . 999 605 4255 3663 5530 1520 Parts Sabotaged . | . . . . . . . . Parts Stolen . | . . . . . . . . Parts Stripped . | . . . . . . . . Power Chain Reactions . | . . . . . . . . Alert | -11 -10 -10 -10 -8 -7 -6 -5 ------- Run | Yrd Mat Min Sub Mat Fac Fac Fac Peak Influence 401 | . 13 264 . 371 222 306 401 Initial 140 | . . 4 . 6 127 37 140 Average 157 | . 1 121 . 235 94 151 290 Maximum Alert Level 2 | . . 1 . 2 1 1 2 Low Security (%) 70 | 100 100 89 . 26 97 80 29 Level 1 29 | . . 10 . 73 2 19 69 Level 2 . | . . . . . . . . Level 3 . | . . . . . . . . Level 4 . | . . . . . . . . Level 5 . | . . . . . . . . High Security . | . . . . . . . . Max Security . | . . . . . . . . Squads Dispatched 22 | . 2 . . 4 8 7 1 Investigation 6 | . 2 . . . 3 1 . Extermination 5 | . . . . . 2 2 1 Reinforcement 8 | . . . . 4 . 4 . Assault . | . . . . . . . . Garrison 3 | . . . . . 3 . . Intercept . | . . . . . . . . Searches Triggered . | . . . . . . . . Construction Impeded 2 | . . . . . . 2 . Haulers Reinforced 1 | . . . . . . 1 . Active Scanning Responses . | . . . . . . . . Cargo Convoy Interrupts . | . . . . . . . . Stealth | -11 -10 -10 -10 -8 -7 -6 -5 --------- Run | Yrd Mat Min Sub Mat Fac Fac Fac Distress Signals 4 | . . . . 2 1 . 1 Communications Jammed . | . . . . . . . . Distress Signals . | . . . . . . . . Times Spotted 117 | . . 20 2 31 20 24 20 Peak Tracking Total 6 | . 1 4 2 3 4 4 6 Tactical Retreats 9 | . . 2 . 2 3 1 1 Traps | -11 -10 -10 -10 -8 -7 -6 -5 ------- Run | Yrd Mat Min Sub Mat Fac Fac Fac Traps Triggered 8 | . 1 . . . 4 3 . Indirectly . | . . . . . . . . Trap Hack Attempts . | . . . . . . . . Triggered . | . . . . . . . . Disarmed . | . . . . . . . . Reprogrammed . | . . . . . . . . Reused . | . . . . . . . . Traps Extracted . | . . . . . . . . Installed . | . . . . . . . . Triggered . | . . . . . . . . Machines | -11 -10 -10 -10 -8 -7 -6 -5 ---------- Run | Yrd Mat Min Sub Mat Fac Fac Fac Machines Disabled 10 | . . 2 . 2 2 4 . Max in Single Turn 3 | . . 1 . 2 1 3 . Machines Repaired . | . . . . . . . . Machines Dismantled . | . . . . . . . . Machines Sabotaged . | . . . . . . . . Overloaded Fab Kills . | . . . . . . . . Hacking | -11 -10 -10 -10 -8 -7 -6 -5 --------- Run | Yrd Mat Min Sub Mat Fac Fac Fac Machines Accessed 28 | . 4 . . 7 8 8 1 Terminals 13 | . 2 . . 3 4 4 . Fabricators 1 | . . . . . 1 . . Repair Stations 4 | . . . . 2 . 1 1 Recycling Units 4 | . 2 . . . 1 1 . Scanalyzers 4 | . . . . 1 1 2 . Garrison Access 2 | . . . . 1 1 . . Total Hacks 81 | . 11 . . 25 13 28 4 Successful 43 | . 7 . . 13 2 17 4 Failed 38 | . 4 . . 12 11 11 . Catastrophic 11 | . . . . 4 3 4 . Database Lockouts . | . . . . . . . . Manual 14 | . 4 . . . 5 5 . Terminals 34 | . 7 . . 9 7 11 . Fabricators 2 | . . . . . 2 . . Repair Stations 18 | . . . . 9 . 5 4 Recycling Units 8 | . 4 . . . 1 3 . Scanalyzers 17 | . . . . 6 2 9 . Garrison Access 2 | . . . . 1 1 . . Terminal Hacks 13 | . 4 . . 3 1 5 . Record 3 | . . . . . . 3 . Robot Analysis 1 | . . . . . . 1 . Branch Access Points 2 | . 1 . . . . 1 . Scanalyzer Index 2 | . . . . 1 1 . . Alert Level 1 | . . . . 1 . . . Locate Traps 1 | . 1 . . . . . . Hauler Manifests 1 | . 1 . . . . . . Zone Layout 2 | . 1 . . 1 . . . Fabricator Hacks . | . . . . . . . . Repair Station Hacks 14 | . . . . 6 . 4 4 Scan Component 7 | . . . . 3 . 2 2 Repair 7 | . . . . 3 . 2 2 Recycling Unit Hacks 4 | . 3 . . . . 1 . Report Inventory 2 | . 2 . . . . . . Retrieve Components 2 | . 1 . . . . 1 . Scanalyzer 11 | . . . . 4 . 7 . Insert Component 6 | . . . . 2 . 4 . Analyze 5 | . . . . 2 . 3 . Garrison Access Hacks . | . . . . . . . . Unauthorized Hacks 1 | . . . . . 1 . . Terminals . | . . . . . . . . Fabricators . | . . . . . . . . Repair Stations . | . . . . . . . . Recycling Units . | . . . . . . . . Scanalyzers 1 | . . . . . 1 . . Extract 1 | . . . . . 1 . . Garrison Access . | . . . . . . . . Data Cores Recovered . | . . . . . . . . Used . | . . . . . . . . Hacking Detections 26 | . 2 . . 7 8 8 1 Full Trace Events 2 | . 1 . . . . 1 . Feedback Events . | . . . . . . . . Feedback Blocked . | . . . . . . . . Robot Schematics Acquired . | . . . . . . . . Robots Built . | . . . . . . . . Authchips . | . . . . . . . . Time . | . . . . . . . . Total Robot Build Rating . | . . . . . . . . Part Schematics Acquired 8 | . . . . 2 3 3 . Parts Built . | . . . . . . . . Authchips . | . . . . . . . . Time . | . . . . . . . . Total Part Build Rating . | . . . . . . . . Parts Repaired 7 | . . . . 3 . 2 2 Time 236 | . . . . 84 . 64 88 Parts Recycled . | . . . . . . . . Recycled Matter . | . . . . . . . . Retrieved Matter . | . . . . . . . . Retrieved Components 2 | . 1 . . . . 1 . Parts Scanalyzed 6 | . . . . 2 . 4 . Part Schematics Acquired 5 | . . . . 2 . 3 . Parts Damaged 1 | . . . . . . 1 . Bothacking | -11 -10 -10 -10 -8 -7 -6 -5 ------------ Run | Yrd Mat Min Sub Mat Fac Fac Fac Used RIF Installer . | . . . . . . . . Robots Hacked . | . . . . . . . . Non-combat . | . . . . . . . . Combat . | . . . . . . . . Robot Hacks Applied . | . . . . . . . . Relay Couplers Released . | . . . . . . . . Fabnet Peak Effective % . | . . . . . . . . Robots Rewired . | . . . . . . . . Allies Hacked . | . . . . . . . . Hacks Repelled . | . . . . . . . . Allies | -11 -10 -10 -10 -8 -7 -6 -5 -------- Run | Yrd Mat Min Sub Mat Fac Fac Fac Total Allies . | . . . . . . . . Largest Group . | . . . . . . . . Highest-Rated Group . | . . . . . . . . Highest-Rated Ally . | . . . . . . . . Total Orders . | . . . . . . . . Ally Attacks . | . . . . . . . . Total Damage . | . . . . . . . . Kills . | . . . . . . . . Allies Corrupted . | . . . . . . . . Allies Melted . | . . . . . . . . Intel | -11 -10 -10 -10 -8 -7 -6 -5 ------- Run | Yrd Mat Min Sub Mat Fac Fac Fac Robot Analysis Total 1 | . . . . . . 1 . Derelict Logs Recovered 1 | . . 1 . . . . . Drone Launches . | . . . . . . . . Drone Recoveries . | . . . . . . . . Exploration | -11 -10 -10 -10 -8 -7 -6 -5 ------------- Run | Yrd Mat Min Sub Mat Fac Fac Fac Turns Passed 6290 | 44 154 836 208 1342 1754 1397 555 Spaces Moved 3484 | 31 123 542 136 781 1075 552 244 Core 10 | 10 . . . . . . . Treads . | . . . . . . . . Legs 3357 | 21 123 542 136 781 1075 435 244 Wheels 117 | . . . . . . 117 . Hover . | . . . . . . . . Flight . | . . . . . . . . Fastest Speed 50 | 50 120 120 120 120 120 95 120 Average Speed 137 | 111 120 120 120 120 139 185 129 Slowest Speed 330 | 200 120 190 120 260 260 330 330 Overloaded Moves . | . . . . . . . . Propulsion Burnouts . | . . . . . . . . Robots Hopped . | . . . . . . . . Cave-ins Triggered . | . . . . . . . . Exploration Rate (%) 29 | 3 26 81 15 59 26 14 9 Regions Visited 7 Branch Regions 2 Pre-discovered Areas 1 | . . 1 . . . . . Known Exits Taken 2 | . 1 . . . 1 . . Unknown Exits Taken 5 | 1 . 1 1 1 . 1 . Scrap Searched 1 | . . 1 . . . . . Spaces Dug 2 | . . . . 2 . . . Terrain Destroyed 126 | . . . . 36 . 43 47 Melee 1 | . . . . 1 . . . Projectile 27 | . . . . 1 . 5 21 AOE 98 | . . . . 34 . 38 26 Terrain Rammed . | . . . . . . . . Walls Destroyed . | . . . . . . . . Machines Disabled . | . . . . . . . . Actions | -11 -10 -10 -10 -8 -7 -6 -5 --------- Run | Yrd Mat Min Sub Mat Fac Fac Fac Total 4421 | 37 129 649 162 1031 1241 772 400 Wait 315 | . . 23 15 108 27 48 94 Move 3477 | 30 122 541 135 780 1074 551 244 Hop . | . . . . . . . . Pick Up 83 | 1 4 13 1 14 21 23 6 Fast Attach 43 | 6 1 . . 7 5 17 7 Attach 35 | . . 1 1 7 5 13 8 Detach 9 | . . . . . 4 4 1 Swap 94 | . 1 16 2 24 26 23 2 Drop 81 | . 1 13 . 17 26 23 1 Fire 251 | . . 34 8 71 46 58 34 Melee 1 | . . . . 1 . . . Ram . | . . . . . . . . Kick 28 | . . 8 . 2 7 8 3 Crush . | . . . . . . . . Escape Stasis 4 | . . . . . . 4 . Rewire . | . . . . . . . . Trap . | . . . . . . . . Miscellaneous . | . . . . . . . . Route ------- -11/Scrapyard -10/Materials (discovered 2 exits: *Min x2) -10/Mines (discovered 3 exits: [*Mat x2] / [*Sub]) -10/Subcaves (discovered 2 exits: *Mat x2) -8/Materials -7/Factory -6/Factory (discovered 3 exits: *Fac / Low x2) -5/Factory History --------- Turn | Location | Event 26 | -11/Scrapyard | Discovered new exit (range 14) 45 | -11/Scrapyard | Entered Materials 184 | -10/Materials | Identified exit to Mines 199 | -10/Materials | Entered Mines 233 | -10/Mines | Met a Derelict bent on vengeance 317 | -10/Mines | Build established: Mutant 383 | -10/Mines | Discovered new exit (range 4) 488 | -10/Mines | Discovered new exit (range 12) 612 | -10/Mines | Joined a pair of Derelicts in attacking an 0b10 outpost 897 | -10/Mines | Learned location of Storage (-9) 1022 | -10/Mines | Discovered new exit (range 5) 1035 | -10/Mines | Entered Subcaves 1127 | -10/Subcaves | Discovered new exit (range 12) 1171 | -10/Subcaves | Core integrity fell below 50% 1201 | -10/Subcaves | Build established: Scavenger-Mutant 1216 | -10/Subcaves | A swath of the cavern ceiling suddenly collapsed 1236 | -10/Subcaves | Discovered new exit (range 4) 1243 | -10/Subcaves | Entered Materials 1243 | -8/Materials | Evolved 4 slots: Propulsion x1, Utility x2, Weapon x1 1600 | -8/Materials | Build established: Scavenger-Tank 1638 | -8/Materials | Repaired Lgt. Armor Plating 1671 | -8/Materials | Repaired Beam Rifle 1983 | -8/Materials | Discovered new exit (range 8) 2106 | -8/Materials | Repaired Weapon Shielding 2585 | -8/Materials | Entered Factory 2585 | -7/Factory | Evolved 2 slots: Propulsion x1, Utility x1 3075 | -7/Factory | Garrison activated, responded to threat 3579 | -7/Factory | Build established: Scavenger-Skirmisher 3702 | -7/Factory | Discovered new exit (range 5) 4142 | -7/Factory | Core integrity fell below 50% 4337 | -7/Factory | Identified exit to Factory 4339 | -7/Factory | Entered another Factory area 4339 | -6/Factory | Evolved 2 slots: Power x1, Weapon x1 4525 | -6/Factory | Repaired Carbon-fiber Leg 4551 | -6/Factory | Repaired Med. Storage Unit 4835 | -6/Factory | Core integrity fell below 50% 5047 | -6/Factory | Lost 7 parts (1p3n1u2w) 5071 | -6/Factory | Identified exit to Lower Caves 5071 | -6/Factory | Discovered new exit (range 14) 5352 | -6/Factory | Build established: Scavenger-Gunner 5736 | -6/Factory | Entered another Factory area 5736 | -5/Factory | Evolved 2 slots: Utility x2 5892 | -5/Factory | Repaired Flexi-carbon Leg 5932 | -5/Factory | Repaired Cryofiber Web 6149 | -5/Factory | Lost 17 parts (3p3n5u6w) 6286 | -5/Factory | Core integrity fell below 50% 6291 | -5/Factory | Self-destructed Last Messages --------------- 06254_ K-01 Serf collects debris. 06256_ Pressure Siphon disabled. 06261_ K-01 Serf collects debris. 06262_ R-10 Processor inserts Mic. Fission Core into recycling unit. 06265_ R-10 Processor inserts Imp. Remote Datajack into recycling unit. 06269_ System corrupted: Heat flow error (+113). 06270_ Acquired 19 matter. 06270_ Arm. Leg destroyed. 06274_ P-70 Sage knocked back. 06277_ Acquired 11 matter. 06278_ Slug penetrates Wall. 06283_ Flexi-carbon Leg destroyed. 06284_ Penetrated by Slug. 06289_ Acquired 5 matter. 06289_ Flexi-carbon Leg destroyed. 06290_ Adv. Assault Cannon destroyed. 06291_ System corrupted: IFF burst signal emitted. Map ----- +----------------------------------------------------+ | ???# #???????????????????????????????????????? | | ???# ####????????????????????????????????????? | | #### ###########+############????????????????? | | % ????????????????? | | ????????????????? | | ????????????????? | | // """" ???????????????????? | | / %""" ?????????????????????? | | ###+### / %%""" #?????????????????????????? | | # #?????????????????????????? | | """ # """" #######???????????????????? | | """" # """" # ???????????????????? | | """" # """% # ??????????????????? | | # # """ "?????????????????? | | # # """ "?"???????????????? | | ### #### ^ # """ """???????????????? | | #########+####^ ^# "" "" ?????????????? | | # #= "" "" #????????????? | | """""" """ # # #????????????? | | ?"""""" "R" # + #????????????? | | ??""""" " " + # """Y""" #????????????? | | ??""""" # # """"""" #????????????? | | ! # # #????????????? | | ##+########### ##;##+################????? | | ? p #????? | | ? @ #????? | | ? #????? | | ? s #????? | | ?? % #????? | | ?? ###################+########## #????? | | ?? ???????????????# ]##?# #????? | | ??????????????????# #??# #????? | | ??????????????????# #??# #????? | | ??????????????????# """ """ #??# #????? | | ??????????????????# """ """ #??# #????? | | ??????????????????# """ """ #??# #????? | | ??????????????????# #??# #????? | | ??????????????????# """ """ #??# #????? | | ??????????????????# """ """ #??#######????? | | ??????????????????# """ """ #?????????????? | | ??????????????????# #?????????????? | | ??????????????????# #?????????????? | | ??????????????????##############?????????????? | | ?????????????????????????????????????????????? | | ?????????????????????????????????????????????? | | ?????????????????????????????????????????????? | | ?????????????????????????????????????????????? | | ?????????????????????????????????????????????? | | ?????????????????????????????????????????????? | | ?????????????????????????????????????????????? | +----------------------------------------------------+ Best States ------------- Heat Dissipation 78 Coolant Potential 145 Energy Generation 36 Energy Capacity 370 Matter Stores 300 Matter Capacity 300 Sight Range 16 Robot Scan Range 15 Terrain Scan Range 16 Terrain Scan Density 10 Jamming Range 12 Power Amplification 20 Additional Mass Support 9 Base Temperature (-) 100 Armor Coverage 750 Resistance: KI 20 Weapon Shielding 33 Point Defense Rating 80 Weapon Cycling 15 Evasion (%) 55 Particle Charging 20 Item Schematics ----------------- Adv. Weight Redist. System | -8/Materials | Scanalyzed Imp. Aluminum Leg | -8/Materials | Scanalyzed Hpw. Field Laser | -7/Factory | Extracted Adv. Treads | -7/Factory | Extracted Salvage Targeting Computer | -7/Factory | Extracted Weapon Cycler | -6/Factory | Scanalyzed Flexi-carbon Leg | -6/Factory | Scanalyzed Prc. Beam Rifle | -6/Factory | Scanalyzed Robot Schematics ------------------ None Fabricated ------------ Nothing Alien Tech Used ----------------- None Achievements -------------- Overkill Challenges ------------ None Game ------ Seed AnalysisWeaponsKatana Manual? 0 Play Time 01:48:19 Cumulative 35.7 hours Start 2024.12.04 @ 20:25:36 End 2024.12.05 @ 12:22:56 Sessions 5 Manual Loads 0 Difficulty Rogue Special Mode None Game No. 23 Rogue 17 Adventurer 6 Explorer 0 Win Type - Total 0 Types 0/0/0/0/0/0/0/0/0 Lore% 16 Gallery% 29 Achievement% 25 Wizard Run 0 Options --------- Layout 1 ASCII 0 Keyboard 0 Movement Arrows Keybinds 0 Fullscreen 2 Font 24/Smallcaps Map View 50x35 Zoom Use 0% Tactical HUD 1 Map Filters NONE Filters NONE Steam 1 RUN: a68cbb17-42b9-466d-80f9-03ad929b5010